[Event "*** Titled Tuesday 3|2 Blitz"]
[Site "Chess.com"]
[Date "2016.02.02"]
[Round "1"]
[White "tigra"]
[Black "the_drake"]
[Result "1-0"]
[WhiteElo "2422"]
[BlackElo "2008"]
[TimeControl "180+2"]
[EndTime "17:04:37 PST"]
[Termination "tigra won by resignation"]

1. e4 {[%clk 0:03:01.8]} 1... e5 {[%clk 0:02:52.5]} 2. Nf3 {[%clk 0:03:02.3]}
2... Nc6 {[%clk 0:02:52.6]} 3. Bc4 {[%clk 0:03:02.9]} 3... Bc5 {[%clk
0:02:52.6]} 4. c3 {[%clk 0:03:02.9]} 4... Nf6 {[%clk 0:02:52.5]} 5. d3 {[%clk
0:03:04]} 5... a6 {[%clk 0:02:51.5]} 6. Bb3 {[%clk 0:03:04.2]} 6... h6 {[%clk
0:02:51.9]} 7. Nbd2 {[%clk 0:03:04.4]} 7... O-O {[%clk 0:02:51.4]} 8. Qe2 {[%clk
0:03:02.7]} 8... d5 {[%clk 0:02:51.9]} 9. O-O {[%clk 0:03:01.4]} 9... Bg4 {[%clk
0:02:51.2]} 10. Bc2 {[%clk 0:03:01.3]} 10... d4 {[%clk 0:02:48.7]} 11. h3 {[%clk
0:03:00.3]} 11... Bh5 {[%clk 0:02:43.8]} 12. Nb3 {[%clk 0:02:58.1]} 12... Qe7
{[%clk 0:02:38]} 13. Nxc5 {[%clk 0:02:50.5]} 13... Qxc5 {[%clk 0:02:32.8]} 14.
Bd2 {[%clk 0:02:51.2]} 14... Rad8 {[%clk 0:02:31.5]} 15. Rac1 {[%clk 0:02:50.2]}
15... Qb6 {[%clk 0:02:30]} 16. Rb1 {[%clk 0:02:48.7]} 16... Qc5 {[%clk
0:02:25.8]} 17. Kh2 {[%clk 0:02:43.8]} 17... Nd7 {[%clk 0:02:11.2]} 18. g4
{[%clk 0:02:41.7]} 18... Bg6 {[%clk 0:02:11]} 19. Nh4 {[%clk 0:02:30.2]} 19...
Bh7 {[%clk 0:02:09.2]} 20. Bb3 {[%clk 0:02:28.6]} 20... Qe7 {[%clk 0:02:08.8]}
21. Nf5 {[%clk 0:02:28.7]} 21... Bxf5 {[%clk 0:02:06.3]} 22. gxf5 {[%clk
0:02:28.9]} 22... Kh7 {[%clk 0:02:06.3]} 23. Rg1 {[%clk 0:02:28]} 23... g5
{[%clk 0:02:03.7]} 24. Bxg5 {[%clk 0:02:23.3]} 24... f6 {[%clk 0:01:51.8]} 25.
Bxh6 {[%clk 0:02:21.5]} 25... Rg8 {[%clk 0:01:30.9]} 26. Qh5 {[%clk 0:02:19]}
1-0

[Event "*** Titled Tuesday 3|2 Blitz"]
[Site "Chess.com"]
[Date "2016.02.02"]
[Round "1"]
[White "gmjoey1"]
[Black "Kanthecarowin"]
[Result "1-0"]
[WhiteElo "2450"]
[BlackElo "2161"]
[TimeControl "180+2"]
[EndTime "17:06:27 PST"]
[Termination "gmjoey1 won by resignation"]

1. e4 {[%clk 0:03:00.1]} 1... c6 {[%clk 0:02:56.2]} 2. Nc3 {[%clk 0:02:59.4]}
2... d5 {[%clk 0:02:53.2]} 3. Nf3 {[%clk 0:03:00.4]} 3... Bg4 {[%clk 0:02:49.5]}
4. h3 {[%clk 0:03:00.7]} 4... Bxf3 {[%clk 0:02:48]} 5. Qxf3 {[%clk 0:03:00.5]}
5... dxe4 {[%clk 0:02:49.9]} 6. Nxe4 {[%clk 0:02:59.1]} 6... Nf6 {[%clk
0:02:50.8]} 7. Nxf6+ {[%clk 0:02:57.8]} 7... exf6 {[%clk 0:02:52.7]} 8. Bc4
{[%clk 0:02:50.7]} 8... Be7 {[%clk 0:02:51.2]} 9. Qb3 {[%clk 0:02:35.8]} 9...
O-O {[%clk 0:02:47.8]} 10. Qxb7 {[%clk 0:02:34]} 10... Nd7 {[%clk 0:02:48.4]}
11. O-O {[%clk 0:02:34.3]} 11... Rb8 {[%clk 0:02:48.1]} 12. Qxc6 {[%clk
0:02:17.1]} 12... Rc8 {[%clk 0:02:47.4]} 13. Qe4 {[%clk 0:02:15.8]} 13... f5
{[%clk 0:02:44.6]} 14. Qe2 {[%clk 0:01:59.4]} 14... Re8 {[%clk 0:02:38]} 15. Bb3
{[%clk 0:01:52.8]} 15... Bd6 {[%clk 0:02:32.9]} 16. Qf3 {[%clk 0:01:52.9]} 16...
g6 {[%clk 0:02:32.9]} 17. d4 {[%clk 0:01:52.7]} 17... Qc7 {[%clk 0:02:25.9]} 18.
Bg5 {[%clk 0:01:48.5]} 18... Kg7 {[%clk 0:02:23.8]} 19. Rfe1 {[%clk 0:01:46.7]}
19... h6 {[%clk 0:02:18.6]} 20. Bh4 {[%clk 0:01:39.8]} 20... Bf4 {[%clk
0:01:49]} 21. g3 {[%clk 0:01:33.1]} 21... Bd6 {[%clk 0:01:48.3]} 22. g4 {[%clk
0:01:29.1]} 22... f4 {[%clk 0:01:30.3]} 23. g5 {[%clk 0:01:23.3]} 23... hxg5
{[%clk 0:01:11.5]} 24. Bxg5 {[%clk 0:01:22.2]} 24... f6 {[%clk 0:01:13.1]} 25.
Bh4 {[%clk 0:01:19.3]} 25... g5 {[%clk 0:01:13.7]} 26. Qh5 {[%clk 0:01:17.1]}
26... Rh8 {[%clk 0:01:02.9]} 27. Qf7+ {[%clk 0:01:14.2]} 27... Kh6 {[%clk
0:01:04]} 28. Bxg5+ {[%clk 0:01:12.2]} 28... Kxg5 {[%clk 0:00:57.1]} 29. Qg7+
{[%clk 0:01:12]} 29... Kh5 {[%clk 0:00:57.1]} 30. Bf7+ {[%clk 0:01:11.1]} 1-0

[Event "*** Titled Tuesday 3|2 Blitz"]
[Site "Chess.com"]
[Date "2016.02.02"]
[Round "1"]
[White "Po6Don"]
[Black "AndreyOstrovskiy"]
[Result "0-1"]
[WhiteElo "2094"]
[BlackElo "2452"]
[TimeControl "180+2"]
[EndTime "17:06:27 PST"]
[Termination "AndreyOstrovskiy won by resignation"]

1. e4 {[%clk 0:02:59.5]} 1... e5 {[%clk 0:03:00.5]} 2. Nf3 {[%clk 0:02:59.4]}
2... Nc6 {[%clk 0:03:01.2]} 3. Bc4 {[%clk 0:03:00.4]} 3... Bc5 {[%clk
0:03:00.7]} 4. b4 {[%clk 0:03:00.8]} 4... Bxb4 {[%clk 0:02:59.5]} 5. c3 {[%clk
0:03:02]} 5... Ba5 {[%clk 0:02:59.8]} 6. d4 {[%clk 0:03:00.1]} 6... d6 {[%clk
0:03:00.1]} 7. Qb3 {[%clk 0:02:59.9]} 7... Qd7 {[%clk 0:02:42.9]} 8. O-O {[%clk
0:02:55.5]} 8... Bb6 {[%clk 0:02:42.5]} 9. a4 {[%clk 0:02:52.2]} 9... Na5 {[%clk
0:02:42]} 10. Qa2 {[%clk 0:02:52.2]} 10... Nxc4 {[%clk 0:02:43.1]} 11. Qxc4
{[%clk 0:02:54.1]} 11... a5 {[%clk 0:02:37.6]} 12. dxe5 {[%clk 0:02:50.8]} 12...
Qe6 {[%clk 0:02:29.8]} 13. Qxe6+ {[%clk 0:02:22.8]} 13... Bxe6 {[%clk
0:02:28.9]} 14. exd6 {[%clk 0:02:24.5]} 14... cxd6 {[%clk 0:02:28.9]} 15. Ba3
{[%clk 0:02:23.2]} 15... Nf6 {[%clk 0:02:24.7]} 16. Nbd2 {[%clk 0:02:01]} 16...
O-O-O {[%clk 0:02:13.6]} 17. Rab1 {[%clk 0:01:36]} 17... Bc7 {[%clk 0:01:56.3]}
18. Ng5 {[%clk 0:01:28.8]} 18... d5 {[%clk 0:01:52.3]} 19. Nxe6 {[%clk
0:01:25.7]} 19... fxe6 {[%clk 0:01:53]} 20. Rfe1 {[%clk 0:01:24.8]} 20... Bf4
{[%clk 0:01:47]} 21. e5 {[%clk 0:01:11.3]} 21... Bxd2 {[%clk 0:01:45.3]} 22. Re2
{[%clk 0:01:12.4]} 22... Ne4 {[%clk 0:01:44.8]} 23. Be7 {[%clk 0:00:13.3]} 23...
Rd7 {[%clk 0:01:40.8]} 24. Bh4 {[%clk 0:00:04.9]} 24... Nxc3 {[%clk 0:01:38.8]}
25. Rxd2 {[%clk 0:00:04.2]} 25... Nxb1 {[%clk 0:01:40.1]} 26. Rc2+ {[%clk
0:00:05.4]} 26... Rc7 {[%clk 0:01:41.5]} 27. Rxc7+ {[%clk 0:00:05.4]} 27... Kxc7
{[%clk 0:01:42.4]} 28. f4 {[%clk 0:00:06.8]} 0-1

[Event "*** Titled Tuesday 3|2 Blitz"]
[Site "Chess.com"]
[Date "2016.02.02"]
[Round "1"]
[White "dwyde"]
[Black "SenseiJulio"]
[Result "0-1"]
[WhiteElo "2288"]
[BlackElo "2574"]
[TimeControl "180+2"]
[EndTime "17:08:04 PST"]
[Termination "SenseiJulio won by checkmate"]

1. d4 {[%clk 0:03:01.9]} 1... e6 {[%clk 0:03:01]} 2. c4 {[%clk 0:02:58.6]} 2...
Bb4+ {[%clk 0:03:01.3]} 3. Nc3 {[%clk 0:02:59.1]} 3... Nf6 {[%clk 0:03:00.8]} 4.
e3 {[%clk 0:02:57.4]} 4... b6 {[%clk 0:02:58.2]} 5. Nf3 {[%clk 0:02:58.7]} 5...
Bb7 {[%clk 0:02:53.4]} 6. Bd3 {[%clk 0:02:59.1]} 6... Ne4 {[%clk 0:02:51.9]} 7.
Qc2 {[%clk 0:02:57.4]} 7... f5 {[%clk 0:02:51.6]} 8. O-O {[%clk 0:02:56.5]} 8...
Bxc3 {[%clk 0:02:47.7]} 9. bxc3 {[%clk 0:02:57]} 9... O-O {[%clk 0:02:47.6]} 10.
Ne1 {[%clk 0:02:56.5]} 10... Qh4 {[%clk 0:02:45.9]} 11. f3 {[%clk 0:02:54.3]}
11... Ng5 {[%clk 0:02:44.7]} 12. Ba3 {[%clk 0:02:41.9]} 12... d6 {[%clk
0:02:39.7]} 13. c5 {[%clk 0:02:23.6]} 13... dxc5 {[%clk 0:02:37]} 14. dxc5
{[%clk 0:02:24.4]} 14... Rf6 {[%clk 0:02:36.9]} 15. g3 {[%clk 0:02:14.1]} 15...
Qh5 {[%clk 0:02:25.8]} 16. Qg2 {[%clk 0:02:06.5]} 16... Nd7 {[%clk 0:02:06.4]}
17. Rd1 {[%clk 0:02:03.6]} 17... Ne5 {[%clk 0:01:48.1]} 18. Be2 {[%clk
0:02:02.7]} 18... Ng4 {[%clk 0:01:49]} 19. Bc1 {[%clk 0:01:52.2]} 19... Nh3+
{[%clk 0:01:40.5]} 20. Kh1 {[%clk 0:01:50.8]} 20... Raf8 {[%clk 0:01:27.9]} 21.
Rd7 {[%clk 0:01:39.2]} 21... Rh6 {[%clk 0:01:23.8]} 22. Rxc7 {[%clk 0:01:29]}
22... Ba8 {[%clk 0:00:13.5]} 23. c6 {[%clk 0:01:25.3]} 23... Ne5 {[%clk
0:00:14]} 24. e4 {[%clk 0:01:17.2]} 24... f4 {[%clk 0:00:12.9]} 25. g4 {[%clk
0:01:13.2]} 25... Qh4 {[%clk 0:00:13.3]} 26. Nd3 {[%clk 0:01:08.9]} 26... Nxc6
{[%clk 0:00:12.2]} 27. Ba3 {[%clk 0:00:59.6]} 27... Rd8 {[%clk 0:00:12.7]} 28.
Bc1 {[%clk 0:00:46.4]} 28... e5 {[%clk 0:00:12.4]} 29. Nf2 {[%clk 0:00:44.8]}
29... Ng5 {[%clk 0:00:12.9]} 30. Kg1 {[%clk 0:00:43.2]} 30... Na5 {[%clk
0:00:13.7]} 31. Rd1 {[%clk 0:00:43.4]} 31... Rxd1+ {[%clk 0:00:12.4]} 32. Bxd1
{[%clk 0:00:42.3]} 32... Nc4 {[%clk 0:00:13.5]} 33. Rxc4 {[%clk 0:00:42.2]}
33... Bb7 {[%clk 0:00:14.7]} 34. Rc7 {[%clk 0:00:41.4]} 34... Ba6 {[%clk
0:00:16.1]} 35. Bb3+ {[%clk 0:00:40.6]} 35... Kf8 {[%clk 0:00:16.1]} 36. Ba3+
{[%clk 0:00:41]} 36... Ke8 {[%clk 0:00:16.9]} 37. Be7 {[%clk 0:00:36.7]} 37...
Nxf3+ {[%clk 0:00:17.8]} 38. Kh1 {[%clk 0:00:32.8]} 38... Qxh2+ {[%clk
0:00:19.7]} 39. Qxh2 {[%clk 0:00:33.9]} 39... Rxh2# {[%clk 0:00:21.3]} 0-1

[Event "*** Titled Tuesday 3|2 Blitz"]
[Site "Chess.com"]
[Date "2016.02.02"]
[Round "1"]
[White "Winehouse83"]
[Black "Anton_Demchenko"]
[Result "0-1"]
[WhiteElo "2306"]
[BlackElo "2626"]
[TimeControl "180+2"]
[EndTime "17:08:05 PST"]
[Termination "Anton_Demchenko won by resignation"]

1. d4 {[%clk 0:03:01.1]} 1... Nf6 {[%clk 0:02:59.3]} 2. c4 {[%clk 0:03:02.4]}
2... g6 {[%clk 0:03:00.5]} 3. Nc3 {[%clk 0:03:02.1]} 3... Bg7 {[%clk 0:03:01.1]}
4. e4 {[%clk 0:03:03.5]} 4... O-O {[%clk 0:03:01.7]} 5. Be2 {[%clk 0:03:05]}
5... d6 {[%clk 0:03:02.6]} 6. Bg5 {[%clk 0:03:06.1]} 6... Na6 {[%clk 0:03:02.8]}
7. f4 {[%clk 0:03:05.6]} 7... c6 {[%clk 0:02:59.2]} 8. Nf3 {[%clk 0:03:02.4]}
8... Nc7 {[%clk 0:02:59.6]} 9. Bh4 {[%clk 0:02:59.3]} 9... b5 {[%clk 0:02:30.2]}
10. e5 {[%clk 0:02:50.9]} 10... Nh5 {[%clk 0:01:51.8]} 11. Qd2 {[%clk
0:02:44.8]} 11... bxc4 {[%clk 0:01:13.1]} 12. Bxc4 {[%clk 0:02:44.9]} 12... Bg4
{[%clk 0:01:14.1]} 13. O-O {[%clk 0:02:29.4]} 13... Bxf3 {[%clk 0:01:15]} 14.
Rxf3 {[%clk 0:02:29.9]} 14... dxe5 {[%clk 0:01:16.2]} 15. fxe5 {[%clk
0:02:31.1]} 15... Bxe5 {[%clk 0:01:14.5]} 16. Rd1 {[%clk 0:02:31.1]} 16... Bg7
{[%clk 0:01:03.9]} 17. d5 {[%clk 0:02:21.3]} 17... Bxc3 {[%clk 0:00:43.9]} 18.
Qxc3 {[%clk 0:02:21.4]} 18... Nxd5 {[%clk 0:00:43.1]} 19. Qd2 {[%clk 0:02:15.1]}
19... Qd7 {[%clk 0:00:34.7]} 20. Bxd5 {[%clk 0:02:07.9]} 20... cxd5 {[%clk
0:00:30.7]} 21. Qxd5 {[%clk 0:02:08.4]} 21... Qxd5 {[%clk 0:00:29.7]} 22. Rxd5
{[%clk 0:02:09.2]} 22... e6 {[%clk 0:00:16.9]} 23. Rd7 {[%clk 0:02:09.7]} 23...
e5 {[%clk 0:00:13.2]} 24. g4 {[%clk 0:02:07.8]} 24... Nf4 {[%clk 0:00:13.7]} 25.
Bf6 {[%clk 0:02:02.3]} 25... Rfe8 {[%clk 0:00:13.5]} 26. Re3 {[%clk 0:01:56.6]}
26... e4 {[%clk 0:00:11.2]} 27. Rd4 {[%clk 0:01:52.7]} 27... h5 {[%clk
0:00:11.2]} 28. Rdxe4 {[%clk 0:01:50.8]} 28... Rxe4 {[%clk 0:00:11.4]} 29. Rxe4
{[%clk 0:01:52.4]} 29... Nd5 {[%clk 0:00:11.7]} 30. Bd4 {[%clk 0:01:50.1]} 30...
hxg4 {[%clk 0:00:12.8]} 31. Rxg4 {[%clk 0:01:51.1]} 31... a6 {[%clk 0:00:13.8]}
32. Rg5 {[%clk 0:01:52.1]} 32... Rd8 {[%clk 0:00:13.9]} 33. Kf2 {[%clk
0:01:50.1]} 33... Kh7 {[%clk 0:00:14.7]} 34. Rg3 {[%clk 0:01:49.7]} 34... f6
{[%clk 0:00:13.3]} 35. Ra3 {[%clk 0:01:48.1]} 35... Rd6 {[%clk 0:00:14.5]} 36.
Rh3+ {[%clk 0:01:48.8]} 36... Kg7 {[%clk 0:00:15.4]} 37. Rb3 {[%clk 0:01:49.3]}
37... Kf7 {[%clk 0:00:14.5]} 38. Rb7+ {[%clk 0:01:48.2]} 38... Ke6 {[%clk
0:00:15.7]} 39. b3 {[%clk 0:01:43.7]} 39... Rc6 {[%clk 0:00:16.1]} 40. a4 {[%clk
0:01:40.9]} 40... Kf5 {[%clk 0:00:16.7]} 41. Kf3 {[%clk 0:01:39.9]} 41... g5
{[%clk 0:00:15.9]} 42. Rd7 {[%clk 0:01:39.3]} 42... Nf4 {[%clk 0:00:16.3]} 43.
Rb7 {[%clk 0:01:37]} 43... g4+ {[%clk 0:00:16.7]} 44. Kg3 {[%clk 0:01:36.9]}
44... Ne2+ {[%clk 0:00:17.1]} 45. Kf2 {[%clk 0:01:34]} 45... Nxd4 {[%clk
0:00:19]} 46. b4 {[%clk 0:01:35.5]} 46... Rc3 {[%clk 0:00:18.3]} 47. b5 {[%clk
0:01:35.7]} 47... axb5 {[%clk 0:00:18.8]} 48. axb5 {[%clk 0:01:37.6]} 48... Rf3+
{[%clk 0:00:20.4]} 49. Kg2 {[%clk 0:01:37.6]} 49... Rb3 {[%clk 0:00:21.4]} 50.
b6 {[%clk 0:01:39.3]} 50... Rb2+ {[%clk 0:00:22.6]} 51. Kg3 {[%clk 0:01:39]}
51... Ne2+ {[%clk 0:00:23.7]} 0-1

[Event "*** Titled Tuesday 3|2 Blitz"]
[Site "Chess.com"]
[Date "2016.02.02"]
[Round "1"]
[White "GianmarcoVaR"]
[Black "jcibarra"]
[Result "0-1"]
[WhiteElo "2235"]
[BlackElo "2518"]
[TimeControl "180+2"]
[EndTime "17:08:14 PST"]
[Termination "jcibarra won by resignation"]

1. d4 {[%clk 0:03:00.6]} 1... Nf6 {[%clk 0:03:00.3]} 2. Nf3 {[%clk 0:03:01.7]}
2... d5 {[%clk 0:03:00.6]} 3. c4 {[%clk 0:03:02.3]} 3... dxc4 {[%clk 0:03:00.2]}
4. e3 {[%clk 0:02:50.9]} 4... e6 {[%clk 0:02:59.8]} 5. Bxc4 {[%clk 0:02:51.4]}
5... a6 {[%clk 0:03:01.3]} 6. Bb3 {[%clk 0:02:43.6]} 6... c5 {[%clk 0:03:01.9]}
7. Nc3 {[%clk 0:02:41.5]} 7... b5 {[%clk 0:02:56.2]} 8. O-O {[%clk 0:02:38.9]}
8... Bb7 {[%clk 0:02:54.7]} 9. dxc5 {[%clk 0:02:27.7]} 9... Qxd1 {[%clk
0:02:43.6]} 10. Rxd1 {[%clk 0:02:27.8]} 10... Nbd7 {[%clk 0:02:45.1]} 11. Bd2
{[%clk 0:02:29.7]} 11... Nxc5 {[%clk 0:02:44.2]} 12. Bc2 {[%clk 0:02:27.3]}
12... Be7 {[%clk 0:02:38.8]} 13. Be1 {[%clk 0:02:23.2]} 13... Rc8 {[%clk
0:02:32.7]} 14. Ne2 {[%clk 0:02:19.4]} 14... O-O {[%clk 0:02:26.6]} 15. Bb4
{[%clk 0:02:16.7]} 15... Nd5 {[%clk 0:02:23.3]} 16. Ba5 {[%clk 0:02:14.5]} 16...
Bf6 {[%clk 0:02:15.9]} 17. Ned4 {[%clk 0:02:13.9]} 17... g6 {[%clk 0:02:09.6]}
18. e4 {[%clk 0:02:04.6]} 18... Nf4 {[%clk 0:01:20.8]} 19. g3 {[%clk 0:02:02.2]}
19... Nh5 {[%clk 0:01:03.7]} 20. e5 {[%clk 0:01:56.6]} 20... Be7 {[%clk
0:01:02.1]} 21. Rac1 {[%clk 0:01:37.5]} 21... Bd5 {[%clk 0:01:02.7]} 22. Bb1
{[%clk 0:01:35.7]} 22... Na4 {[%clk 0:01:02.7]} 23. b3 {[%clk 0:01:33.7]} 23...
Nc5 {[%clk 0:00:48.5]} 24. Rd2 {[%clk 0:01:23.4]} 24... Nb7 {[%clk 0:00:42.5]}
25. Bc3 {[%clk 0:01:21.7]} 25... Ba3 {[%clk 0:00:40.6]} 26. Rcc2 {[%clk
0:01:21.2]} 26... Be4 {[%clk 0:00:41.9]} 27. Ba1 {[%clk 0:01:01.5]} 27... Bxc2
{[%clk 0:00:42.7]} 28. Nxc2 {[%clk 0:00:54.7]} 28... Bc5 {[%clk 0:00:42.9]} 29.
Kf1 {[%clk 0:00:47.7]} 29... Rfd8 {[%clk 0:00:43.6]} 30. Ke2 {[%clk 0:00:48.6]}
30... Ng7 {[%clk 0:00:44.2]} 31. g4 {[%clk 0:00:44.7]} 31... Ne8 {[%clk
0:00:44.4]} 32. Ncd4 {[%clk 0:00:40.8]} 32... Nc7 {[%clk 0:00:45.3]} 33. Nc2
{[%clk 0:00:07]} 33... Nd5 {[%clk 0:00:44.3]} 34. Kf1 {[%clk 0:00:05.8]} 34...
Nf4 {[%clk 0:00:41.9]} 35. Ncd4 {[%clk 0:00:06.8]} 35... Bxd4 {[%clk 0:00:38.8]}
0-1

[Event "*** Titled Tuesday 3|2 Blitz"]
[Site "Chess.com"]
[Date "2016.02.02"]
[Round "1"]
[White "spectralsoul"]
[Black "cheese111"]
[Result "0-1"]
[WhiteElo "2556"]
[BlackElo "2307"]
[TimeControl "180+2"]
[EndTime "17:08:17 PST"]
[Termination "cheese111 won on time"]

1. Nf3 {[%clk 0:03:01]} 1... Nf6 {[%clk 0:03:00.4]} 2. d4 {[%clk 0:03:02.3]}
2... g6 {[%clk 0:03:01.6]} 3. Bf4 {[%clk 0:02:58.8]} 3... Bg7 {[%clk 0:03:02.6]}
4. e3 {[%clk 0:03:00]} 4... d6 {[%clk 0:03:03.7]} 5. h3 {[%clk 0:03:01.3]} 5...
O-O {[%clk 0:03:04.6]} 6. Be2 {[%clk 0:03:02.6]} 6... c5 {[%clk 0:03:05.2]} 7.
c3 {[%clk 0:03:01.2]} 7... Nc6 {[%clk 0:03:05.8]} 8. O-O {[%clk 0:03:01.6]} 8...
Be6 {[%clk 0:03:06.9]} 9. Nbd2 {[%clk 0:03:00.7]} 9... Qb6 {[%clk 0:03:07]} 10.
Qc1 {[%clk 0:02:51.9]} 10... Rfc8 {[%clk 0:03:04.5]} 11. Re1 {[%clk 0:02:53]}
11... Nd5 {[%clk 0:02:58.5]} 12. Nc4 {[%clk 0:02:45.2]} 12... Qd8 {[%clk
0:02:57.6]} 13. Bg3 {[%clk 0:02:44.8]} 13... cxd4 {[%clk 0:02:18.5]} 14. exd4
{[%clk 0:02:44.4]} 14... b5 {[%clk 0:02:07.5]} 15. Ne3 {[%clk 0:02:26.1]} 15...
Rab8 {[%clk 0:01:00.4]} 16. Qd2 {[%clk 0:02:18]} 16... Na5 {[%clk 0:00:50.7]}
17. Ng5 {[%clk 0:02:11.8]} 17... Nxe3 {[%clk 0:00:26.8]} 18. Qxe3 {[%clk
0:01:51.1]} 18... Nc4 {[%clk 0:00:20.7]} 19. Qf4 {[%clk 0:01:00]} 19... Bf5
{[%clk 0:00:19.3]} 20. b3 {[%clk 0:00:37.5]} 20... e5 {[%clk 0:00:13.1]} 21.
dxe5 {[%clk 0:00:32.5]} 21... dxe5 {[%clk 0:00:15]} 22. Qh4 {[%clk 0:00:30.9]}
22... h6 {[%clk 0:00:16.4]} 23. bxc4 {[%clk 0:00:31.3]} 23... hxg5 {[%clk
0:00:17.4]} 24. Rad1 {[%clk 0:00:22]} 24... gxh4 {[%clk 0:00:18.1]} 25. Rxd8+
{[%clk 0:00:22.4]} 25... Rxd8 {[%clk 0:00:20]} 26. Bxh4 {[%clk 0:00:24.3]} 26...
Rdc8 {[%clk 0:00:21.4]} 27. cxb5 {[%clk 0:00:24.2]} 27... Rxc3 {[%clk
0:00:22.8]} 28. Be7 {[%clk 0:00:24.8]} 28... Bd3 {[%clk 0:00:15.6]} 29. Bf3
{[%clk 0:00:19.2]} 29... e4 {[%clk 0:00:14.9]} 30. Bxe4 {[%clk 0:00:19.7]} 30...
Bxe4 {[%clk 0:00:16.8]} 31. Rxe4 {[%clk 0:00:21.3]} 31... Re8 {[%clk 0:00:18.1]}
0-1

[Event "*** Titled Tuesday 3|2 Blitz"]
[Site "Chess.com"]
[Date "2016.02.02"]
[Round "1"]
[White "brauliocuarta"]
[Black "ZEN-22"]
[Result "1/2-1/2"]
[WhiteElo "1965"]
[BlackElo "2372"]
[TimeControl "180+2"]
[EndTime "17:09:44 PST"]
[Termination "Game drawn - insufficient material"]

1. d4 {[%clk 0:02:32]} 1... e6 {[%clk 0:02:56.7]} 2. c4 {[%clk 0:02:32.2]} 2...
d5 {[%clk 0:02:56.5]} 3. Nc3 {[%clk 0:02:33.4]} 3... Ne7 {[%clk 0:02:55.7]} 4.
Nf3 {[%clk 0:02:33.4]} 4... a6 {[%clk 0:02:56.4]} 5. Bf4 {[%clk 0:02:31]} 5...
f6 {[%clk 0:02:56.6]} 6. e3 {[%clk 0:02:30.5]} 6... g5 {[%clk 0:02:57.1]} 7. Bg3
{[%clk 0:02:31.2]} 7... h5 {[%clk 0:02:58.3]} 8. h3 {[%clk 0:02:31.4]} 8... Nf5
{[%clk 0:02:59]} 9. cxd5 {[%clk 0:02:26]} 9... Nxg3 {[%clk 0:02:59.5]} 10. fxg3
{[%clk 0:02:26.1]} 10... Bd6 {[%clk 0:02:59.5]} 11. Qc2 {[%clk 0:02:20.7]} 11...
Bxg3+ {[%clk 0:02:58.8]} 12. Kd1 {[%clk 0:02:22.4]} 12... Kf7 {[%clk 0:02:48.8]}
13. dxe6+ {[%clk 0:02:11]} 13... Bxe6 {[%clk 0:02:49.4]} 14. Ne4 {[%clk
0:02:12.6]} 14... Bd6 {[%clk 0:02:31.3]} 15. h4 {[%clk 0:01:50.7]} 15... g4
{[%clk 0:02:31.7]} 16. Neg5+ {[%clk 0:01:46.4]} 16... fxg5 {[%clk 0:02:31]} 17.
Nxg5+ {[%clk 0:01:48.3]} 17... Ke7 {[%clk 0:02:26.8]} 18. Nxe6 {[%clk
0:01:48.7]} 18... Kxe6 {[%clk 0:02:27.8]} 19. Bc4+ {[%clk 0:01:48.8]} 19... Ke7
{[%clk 0:02:23.7]} 20. Rf1 {[%clk 0:01:45.6]} 20... Qe8 {[%clk 0:02:21.8]} 21.
Rf7+ {[%clk 0:01:28.3]} 21... Kd8 {[%clk 0:02:22.6]} 22. Qf5 {[%clk 0:01:24.9]}
22... Rf8 {[%clk 0:02:17.1]} 23. Kc2 {[%clk 0:01:21.3]} 23... Rxf7 {[%clk
0:02:16]} 24. Bxf7 {[%clk 0:01:22.8]} 24... Qc6+ {[%clk 0:02:09.7]} 25. Kd3
{[%clk 0:01:19]} 25... Nd7 {[%clk 0:02:09.6]} 26. Qg5+ {[%clk 0:01:17.3]} 26...
Kc8 {[%clk 0:02:10.7]} 27. Qg8+ {[%clk 0:01:12.5]} 27... Nf8 {[%clk 0:02:11.1]}
28. Rf1 {[%clk 0:01:03.9]} 28... Kb8 {[%clk 0:02:00.2]} 29. Bd5 {[%clk 0:01:00]}
29... Qb5+ {[%clk 0:01:45.4]} 30. Bc4 {[%clk 0:01:00.8]} 30... Qe8 {[%clk
0:01:46.3]} 31. Bf7 {[%clk 0:00:50.9]} 31... Qd8 {[%clk 0:01:45.7]} 32. Bxh5
{[%clk 0:00:51.1]} 32... Ka7 {[%clk 0:01:44.4]} 33. Bxg4 {[%clk 0:00:52.5]}
33... Qxh4 {[%clk 0:01:45.2]} 34. Bf3 {[%clk 0:00:49.9]} 34... Rd8 {[%clk
0:01:38.1]} 35. Qd5 {[%clk 0:00:41.4]} 35... c6 {[%clk 0:01:38.2]} 36. Qa5
{[%clk 0:00:41.3]} 36... Ne6 {[%clk 0:01:37.4]} 37. Rc1 {[%clk 0:00:37.2]} 37...
Bc7 {[%clk 0:01:32.4]} 38. Qb4 {[%clk 0:00:33.8]} 38... Bb6 {[%clk 0:01:30.3]}
39. Rc4 {[%clk 0:00:30.4]} 39... c5 {[%clk 0:01:29.3]} 40. d5 {[%clk 0:00:29.9]}
40... cxb4 {[%clk 0:01:29.7]} 41. Rxh4 {[%clk 0:00:29.3]} 41... Nc5+ {[%clk
0:01:29]} 42. Kc4 {[%clk 0:00:28.9]} 42... b3 {[%clk 0:01:27.7]} 43. axb3 {[%clk
0:00:28.7]} 43... Nd7 {[%clk 0:01:28]} 44. Rh5 {[%clk 0:00:21]} 44... Bxe3
{[%clk 0:01:28]} 45. g4 {[%clk 0:00:18.6]} 45... Nb6+ {[%clk 0:01:28]} 46. Kd3
{[%clk 0:00:18]} 46... Bc1 {[%clk 0:01:29.2]} 47. g5 {[%clk 0:00:17.7]} 47...
Nxd5 {[%clk 0:01:29.2]} 48. Kc2 {[%clk 0:00:18.3]} 48... Bf4 {[%clk 0:01:24]}
49. g6 {[%clk 0:00:15.2]} 49... Ne3+ {[%clk 0:01:23.7]} 50. Kc3 {[%clk
0:00:14.9]} 50... Rd7 {[%clk 0:01:17.5]} 51. Rh7 {[%clk 0:00:14.6]} 51... Rg7
{[%clk 0:01:15.6]} 52. Kd3 {[%clk 0:00:11.4]} 52... Nf5 {[%clk 0:01:08.4]} 53.
Ke4 {[%clk 0:00:11.5]} 53... Bc1 {[%clk 0:01:01.4]} 54. Kxf5 {[%clk 0:00:12]}
54... Bxb2 {[%clk 0:01:02.1]} 55. Rxg7 {[%clk 0:00:11.1]} 55... Bxg7 {[%clk
0:01:02.1]} 56. Ke6 {[%clk 0:00:13]} 56... b5 {[%clk 0:00:58.9]} 57. Kf7 {[%clk
0:00:14.9]} 57... Bd4 {[%clk 0:01:00]} 58. g7 {[%clk 0:00:16.1]} 58... Bxg7
{[%clk 0:01:01]} 59. Kxg7 {[%clk 0:00:17.8]} 59... Kb6 {[%clk 0:01:02.8]} 60.
Kf6 {[%clk 0:00:18.6]} 60... Kc5 {[%clk 0:01:04.2]} 61. Ke5 {[%clk 0:00:18.8]}
61... a5 {[%clk 0:01:04.9]} 62. Ke4 {[%clk 0:00:16.6]} 62... Kb4 {[%clk
0:01:05.8]} 63. Bd1 {[%clk 0:00:16]} 63... Kc3 {[%clk 0:01:07.1]} 64. Kd5 {[%clk
0:00:16]} 64... Kd2 {[%clk 0:01:08.4]} 65. Bh5 {[%clk 0:00:14.9]} 65... Kc2
{[%clk 0:01:06.8]} 66. Kc5 {[%clk 0:00:15.8]} 66... Kxb3 {[%clk 0:01:04.7]} 67.
Kxb5 {[%clk 0:00:17.2]} 67... a4 {[%clk 0:01:05.8]} 68. Bf7+ {[%clk 0:00:17.6]}
68... Ka3 {[%clk 0:01:06.8]} 69. Ka5 {[%clk 0:00:17.9]} 69... Kb2 {[%clk
0:01:07.4]} 70. Kxa4 {[%clk 0:00:19]} 1/2-1/2